Cogmind - Beta 11.1 @@@ ROGUE MODE // 2022.05.01 @ 06:09:11 Player: youngster Result: Destroyed by MAIN.C with High-powered Disruptor Cannon Performance ------------- Evolutions (9) 4500 Regions Visited (32) 6400 Robots Destroyed (499) 2495 Value Destroyed (22476) 22476 Prototype IDs (68) 1360 Alien Tech Used (2) 400 Bonus (19367) 19367 TOTAL SCORE: 56998 Bonus ------- Triggered High Security 500 High Alert Combat Kills 5213 Follower Combat Kills 1636 Network Hubs Disabled 400 Met Data Miner 300 Met Zhirov 300 Met Warlord at Base 500 MAIN.C Attacked Warlord 500 Warlord Defense Kill 1570 A7 Reached Mainframe 300 Met Warlord at Research 2000 Invited to Help at Command 2000 Scanned by Researcher 500 Destroyed MAIN.C Guards 500 Met MAIN.C 5000 Friendly Fire -1852 Cogmind --------- Core Integrity 0/1600 Matter 251/300 Energy 100/100 System Corruption 88% Temperature Cool (9) Movement Core (50) Location -1/Command Parts ------- > --- POWER (3) -------- (None) > --- PROPULSION (6) --- (None) > --- UTILITY (11) ----- Experimental Core Analyzer > --- WEAPON (6) ------- (None) > --- INVENTORY (5) ---- Quantum Capacitor Graphene Brace Long-range Tractor Beam Transdimensional Reconstructor Peak State ------------ > --- POWER ------------ Quantum Reactor Light Quantum Reactor Reinforced Quantum Reactor > --- PROPULSION ------- Medium Treads Medium Treads Advanced Heavy Siege Treads Advanced Heavy Siege Treads > --- UTILITY ---------- Advanced Cooling System Advanced Coolant Injector Huge Storage Unit Machine Analyzer Experimental Optical Array Experimental Core Analyzer Experimental Core Analyzer SHELL Armor Graphene Brace > --- WEAPON ----------- BFG-9k Vortex Edition > --- INVENTORY -------- Quantum Reactor Biometal Heavy Treads Biometal Heavy Treads Advanced Energy Well Advanced Energy Well Advanced Particle Charger Quantum Capacitor Advanced Transmission Jammer Long-range Tractor Beam Transdimensional Reconstructor Heavy Neutron Cannon Heavy Shock Bomb Launcher Compact Tesla Bomb Launcher [Rating: 243] Favorites ----------- Power Quantum Reactor Engine Improved Ion Engine Power Core Enhanced Fission Core Reactor Quantum Reactor Propulsion Light Treads Treads Light Treads Leg Advanced Myomer Leg Wheel Armored Wheel Hover Unit Improved Antigrav System Utility Improved Signal Interpreter Device Experimental Sensor Array Storage High-capacity Storage Unit Processor Improved Signal Interpreter Hackware System Mapper Protection Light Armor Plating Weapon KE Penetrator Energy Gun Cooled Plasma Rifle Energy Cannon Improved Matter Neutralizer Ballistic Gun KE Penetrator Ballistic Cannon Heavy Assault Cannon Launcher Mini Grenade Launcher Special Weapon RU-N14's Throwing Claymores v3 Impact Weapon Heavy Flail Special Melee Weapon Improved Datajack Build | -11 -10 -10 -9 -9 -9 -8 -8 -7 -7 -7 -7 -6 -6 -6 -6 -6 -6 -5 -5 -5 -5 -4 -4 -4 -4 -4 -3 -3 -3 -2 -1 -1 ------- Run | Scr Mat Min Mat Min Exi Min Mat Fac Low Low Dat Pro Fac Ext Cet Arc Hub Fac Upp Upp Zhi Pro Fac Upp Upp War Pro Res Tes Res Acc Com Slots Evolved 18 | . . . 2 . . . 2 2 . . . . 2 . . . . 2 . . . . 2 . . . . 2 . 2 2 . Power 2 | . . . . . . . . 1 . . . . . . . . . . . . . . . . . . . 1 . . . . Propulsion 4 | . . . 1 . . . . . . . . . 1 . . . . 2 . . . . . . . . . . . . . . Utility 8 | . . . 1 . . . 1 1 . . . . 1 . . . . . . . . . 2 . . . . . . 2 . . Weapon 4 | . . . . . . . 1 . . . . . . . . . . . . . . . . . . . . 1 . . 2 . Parts Attached 693 | 6 7 6 26 6 . 14 58 45 17 19 2 7 57 50 4 12 15 35 4 11 12 17 48 14 8 7 5 12 42 36 47 44 Power 36 | 1 . . 2 . . . 2 1 1 . . . 4 3 . . 1 3 . . 1 . 2 . . . . 1 3 6 2 3 Engine 10 | 1 . . 2 . . . 1 1 1 . . . 2 1 . . 1 . . . . . . . . . . . . . . . Core 9 | . . . . . . . 1 . . . . . 2 2 . . . 2 . . . . 1 . . . . . 1 . . . Reactor 17 | . . . . . . . . . . . . . . . . . . 1 . . 1 . 1 . . . . 1 2 6 2 3 Propulsion 113 | 2 . 2 8 . . 3 20 11 . 4 . . 12 15 1 . 2 8 . . 2 . 3 1 . . . 1 4 7 3 4 Treads 83 | 2 . 1 7 . . 1 16 7 . 2 . . 8 11 1 . 2 4 . . 1 . 3 . . . . 1 2 7 3 4 Leg 2 | . . . . . . . . . . . . . . . . . . 1 . . 1 . . . . . . . . . . . Wheel 25 | . . 1 1 . . 2 4 4 . 2 . . 4 4 . . . 1 . . . . . 1 . . . . 1 . . . Hover 3 | . . . . . . . . . . . . . . . . . . 2 . . . . . . . . . . 1 . . . Flight . | . . . . . . . . . . . . . . . . . . . . . . . . . . . . . . . . . Utility 291 | 1 4 1 4 1 . . 17 24 12 12 . 4 25 21 . 4 9 16 3 5 5 7 25 9 6 3 . 6 22 13 22 10 Device 184 | . . . 2 . . . 7 15 9 8 . 2 15 11 . 3 6 9 2 3 4 5 16 8 3 2 . 5 16 7 17 9 Storage 8 | 1 1 . . . . . 2 . . . . 1 . . . . . 1 . . . . . . . . . . 1 . . 1 Processor 15 | . . . . 1 . . . 2 . . . . 2 . . . . 1 . . . . 3 . 1 . . . . 5 . . Hackware 2 | . . . . . . . . . . . . . . . . . . . . . . . . . . . . . . . 2 . Protection 82 | . 3 1 2 . . . 8 7 3 4 . 1 8 10 . 1 3 5 1 2 1 2 6 1 2 1 . 1 5 1 3 . Artifact . | . . . . . . . . . . . . . . . . . . . . . . . . . . . . . . . . . Weapon 253 | 2 3 3 12 5 . 11 19 9 4 3 2 3 16 11 3 8 3 8 1 6 4 10 18 4 2 4 5 4 13 10 20 27 Energy Gun 15 | . 1 . 3 . . . . . . . . . 5 3 1 1 . . . . . . . . . . . . 1 . . . Energy Cannon 50 | . . . 2 . . 1 . . . . . . 1 . . . . 2 . . . 3 4 1 1 1 1 1 5 3 8 16 Ballistic Gun 85 | 2 2 2 4 2 . 4 15 4 2 . 1 1 2 . 1 4 1 2 1 2 4 4 7 1 . 1 1 3 6 4 2 . Ballistic Cannon 8 | . . . . . . . . 2 . . 1 1 2 . . . . . . 1 . . . . . . . . 1 . . . Launcher 62 | . . 1 1 2 . 3 3 2 2 1 . 1 5 4 . 2 1 1 . 2 . 3 3 2 1 . . . . 1 10 11 Special Weapon 6 | . . . . . . . . . . . . . . . . . . . . . . . 1 . . 1 2 . . 2 . . Impact Weapon 20 | . . . 2 1 . 3 1 . . 1 . . 1 . 1 . 1 3 . 1 . . 3 . . 1 1 . . . . . Slashing Weapon . | . . . . . . . . . . . . . . . . . . . . . . . . . . . . . . . . . Piercing Weapon . | . . . . . . . . . . . . . . . . . . . . . . . . . . . . . . . . . Special Melee Weapon 7 | . . . . . . . . 1 . 1 . . . 4 . 1 . . . . . . . . . . . . . . . . Unidentified Prototypes 33 | . . . . . . . 2 . 1 . . 1 6 . 2 1 . 1 . . 4 . 1 . . 4 . . 5 4 1 . Corrupted Parts 12 | . . . . . . 1 . . . . . 1 . . . 1 . 1 . . . 3 1 . . . 1 . . . . 3 System Corruption 60 | . . . . . . 1 . . . . . 3 . . . 4 . 2 . . . 21 1 . . . 1 . . . . 27 Parts Lost 82 | . . 1 1 . . . 2 3 . . . . 15 7 . . 9 1 . . . 2 1 1 . . . 1 7 1 6 24 Power 18 | . . . 1 . . . 1 . . . . . 4 2 . . 2 . . . . . . . . . . . 3 . 1 4 Propulsion 18 | . . . . . . . . . . . . . 6 2 . . 2 . . . . . . . . . . . 2 . . 6 Utility 28 | . . 1 . . . . 1 3 . . . . 2 3 . . 2 . . . . 1 1 1 . . . 1 1 . 2 9 Weapon 18 | . . . . . . . . . . . . . 3 . . . 3 1 . . . 1 . . . . . . 1 1 3 5 Highest Loss Streak 9 | . . 1 1 . . . 1 2 . . . . 7 2 . . 7 1 . . . 2 1 1 . . . 1 3 1 1 9 To Critical Strikes 2 | . . . . . . . . . . . . . . 1 . . . . . . . 1 . . . . . . . . . . Average Slot Usage (%) 90 | . 98 100 99 99 100 99 96 87 91 91 85 92 91 99 94 92 89 85 91 94 80 93 91 85 85 84 85 82 82 78 76 59 Engine 6 | . 14 14 11 11 11 11 6 15 14 14 14 14 9 3 6 6 6 . . . . . . . . . . . . . . . Core 2 | . . . . . . . 2 . . . . . 1 8 6 6 5 3 5 5 1 . 4 5 5 5 5 4 4 1 . . Reactor 2 | . . . . . . . . . . . . . . . . . . 5 5 5 8 11 5 5 5 5 5 5 8 9 10 8 Treads 16 | . 28 24 22 22 22 22 20 11 14 14 14 14 20 17 19 18 17 16 22 22 22 22 16 13 10 10 10 9 9 10 11 12 Wheel 3 | . . 3 10 11 11 10 4 6 7 6 7 7 3 6 . . . . . . . . . 1 5 5 5 4 3 1 . . Device 7 | . . . 11 1 . . 6 9 6 6 7 7 5 7 6 8 10 8 11 10 7 10 7 6 7 10 10 11 9 7 9 8 Storage 6 | . 14 14 11 11 11 11 9 7 7 7 7 7 6 6 6 6 6 5 5 5 5 5 5 5 5 5 5 4 4 4 3 3 Processor 17 | . . . . 9 11 11 5 5 14 14 14 14 19 25 25 25 25 22 22 22 22 22 30 30 30 28 25 22 22 19 19 14 Protection 6 | . 13 14 11 11 11 11 13 13 11 14 14 13 11 4 6 3 1 1 . . 1 . 2 3 2 1 5 1 1 4 1 2 Energy Gun 1 | . 11 . 2 . . . . . . . . . 1 14 4 . . . . . . . . . . . . . . . . . Energy Cannon 1 | . . . . . . 5 . . . . . . . . . . . 1 . . . 3 2 4 4 1 . 1 3 5 6 2 Ballistic Gun 11 | . 16 14 13 20 22 14 25 7 6 2 . 6 4 . 4 17 11 10 8 10 . 5 9 9 10 7 10 16 13 10 8 . Ballistic Cannon 1 | . . . . . . . . 6 7 7 . 7 5 . . . . . . 1 . . . . . . . . . . . . Impact Weapon 1 | . . . 4 1 . 1 1 . . . . . . . 2 . 4 2 5 3 5 5 2 . . 3 . . . . . . Naked Turns . | . . . . . . . . . . . . . . . . . . . . . . . . . . . . . . . . . Heaviest Build 229 | 12 32 30 40 40 38 39 77 106 103 98 91 95 98 85 81 90 88 146 138 143 143 141 145 145 141 158 149 156 181 204 226 229 Greatest Support 235 | 40 40 40 60 12 12 40 60 28 12 76 12 12 112 106 130 130 160 217 165 165 165 165 220 220 28 28 28 80 210 220 235 235 Greatest Overweight (x) 13 | . . 2 3 3 3 3 4 8 8 8 7 7 8 3 . . . 13 . . . . . 5 5 5 5 5 6 6 1 1 Average Overweight (x) 2 | . . . 2 2 3 2 1 4 7 7 6 7 3 1 . . . 1 . . . . . 1 4 4 5 4 2 1 . . Largest Inventory Capacity 25 | 8 15 15 15 15 15 15 20 20 20 20 20 20 20 20 20 20 20 25 25 25 25 25 25 25 25 25 25 25 25 25 25 25 Average Capacity 20 | 7 13 15 15 15 15 15 15 20 20 20 20 20 20 20 20 20 20 22 25 25 25 25 25 25 25 25 25 25 25 25 25 24 Most Carried 25 | 3 15 15 15 15 15 15 20 20 20 20 20 20 20 20 20 20 20 25 25 25 25 25 25 25 25 25 25 25 25 25 25 25 Average Carried 20 | 2 12 14 14 14 15 14 15 19 19 19 20 19 18 19 19 19 19 19 24 24 24 24 24 24 24 24 25 24 24 24 24 20 Final Capacity 25 | 8 15 15 15 15 15 15 20 20 20 20 20 20 20 20 20 20 20 25 25 25 25 25 25 25 25 25 25 25 25 25 25 5 Final Carried 25 | 3 15 15 15 15 15 15 20 20 20 20 20 20 20 20 20 20 16 25 25 25 25 25 25 24 25 25 25 25 25 25 25 5 Class Distribution -------------------- 25% | Mutant 15% | Scavenger-Skirmisher 14% | Scavenger-Mutant 9% | Scavenger-Gunner 8% | Scavenger-Assassin 5% | Generator-Mutant 4% | Scavenger-Tank 4% | Tank Dominant Class ---------------- Mutant | -10/Materials Mutant | -10/Mines Mutant | -9/Materials Mutant | -9/Mines Mutant | -9/Exiles Mutant | -8/Mines Tank | -8/Materials Tank | -7/Factory Scavenger-Skirmisher | -7/Lower Caves Scavenger-Skirmisher | -7/Lower Caves Assassin | -7/Data Miner Scavenger-Skirmisher | -6/Proximity Caves Scavenger-Skirmisher | -6/Factory Scavenger-Gunner | -6/Extension Commander-Mutant | -6/Cetus Scavenger-Gunner | -6/Archives Scavenger-Assassin | -6/Hub_04(d) Scavenger-Mutant | -5/Factory Scavenger-Assassin | -5/Upper Caves Scavenger-Assassin | -5/Upper Caves Scavenger-Mutant | -5/Zhirov Scavenger-Assassin | -4/Proximity Caves Scavenger-Assassin | -4/Factory Skirmisher | -4/Upper Caves Mutant | -4/Upper Caves Mutant | -4/Warlord Mutant | -3/Proximity Caves Generator-Gunner | -3/Research Generator-Mutant | -3/Testing Generator-Mutant | -2/Research Scavenger-Mutant | -1/Access Scavenger-Mutant | -1/Command Resources | -11 -10 -10 -9 -9 -9 -8 -8 -7 -7 -7 -7 -6 -6 -6 -6 -6 -6 -5 -5 -5 -5 -4 -4 -4 -4 -4 -3 -3 -3 -2 -1 -1 ----------- Run | Scr Mat Min Mat Min Exi Min Mat Fac Low Low Dat Pro Fac Ext Cet Arc Hub Fac Upp Upp Zhi Pro Fac Upp Upp War Pro Res Tes Res Acc Com Matter Collected 14515 | 208 158 145 342 116 . 290 1931 792 362 416 . 167 1349 535 60 384 501 550 112 283 135 242 907 316 196 105 60 337 875 542 1407 692 Remotely 2276 | . . . . . . . . 94 49 154 . . 572 . . . 178 133 . . . . 176 . . . . 265 . . 578 77 Salvage Created 24028 | . 509 43 946 33 . 565 2204 1204 283 104 . 133 2059 1157 . 606 600 1137 . 407 335 458 1392 514 110 274 85 485 1381 197 4281 2526 Parts 1154 | . 26 8 58 9 . 24 136 72 15 5 . 9 91 35 . 36 14 59 . 8 4 11 70 15 10 9 2 30 81 10 209 98 Haulers Intercepted 20 | . 2 . 4 . . . 6 . . . . . 2 . . . 3 3 . . . . . . . . . . . . . . Recyclers Shooed 12 | . . . . . . . 1 1 . . . . 3 1 . . 2 2 . . . . 2 . . . . . . . . . Parts Field Recycled 23 | . . . . . . . . 23 . . . . . . . . . . . . . . . . . . . . . . . . Retrieved Matter 366 | . . . . . . . . 366 . . . . . . . . . . . . . . . . . . . . . . . . Parts Self-Destructed 114 | . . . . . . . . . 10 8 . 12 . . . . . . . 6 3 . . 9 6 58 2 . . . . . Prevented 47 | . . . . . . . . . 2 2 . . . . . . . . 3 5 1 9 . 12 4 9 . . . . . . Kills | -11 -10 -10 -9 -9 -9 -8 -8 -7 -7 -7 -7 -6 -6 -6 -6 -6 -6 -5 -5 -5 -5 -4 -4 -4 -4 -4 -3 -3 -3 -2 -1 -1 ------- Run | Scr Mat Min Mat Min Exi Min Mat Fac Low Low Dat Pro Fac Ext Cet Arc Hub Fac Upp Upp Zhi Pro Fac Upp Upp War Pro Res Tes Res Acc Com Combat Hostiles Destroyed 366 | . 10 8 11 6 . 11 41 26 8 3 . 1 33 19 . 1 2 14 . 4 . 4 25 8 4 10 2 5 18 4 45 43 Melee 4 | . . . 2 . . . . . . . . . 1 . . . . 1 . . . . . . . . . . . . . . Guns 135 | . 10 . 9 . . 3 38 2 . . . . 1 13 . 1 2 5 . 1 . . 11 3 . . 1 5 15 1 14 . Cannons 82 | . . . . . . 2 . 19 2 3 . 1 17 . . . . 1 . . . . 6 . . . . . 3 2 10 16 AOE 114 | . . 8 . 6 . 6 3 5 6 . . . 13 4 . . . 3 . 2 . . 7 5 4 10 1 . . 1 14 16 Classes Destroyed 24 | . 2 2 5 1 . 2 2 1 1 . . . 5 . . . . . . . . . . . . 1 . . 1 . 1 . Worker 42 | . . . 3 . . . 3 8 . . . . 8 . . . 1 5 . . . . 1 . . . . 2 1 . 9 1 Builder 25 | . . . 1 . . . 3 2 . . . . 4 1 . . 1 5 . . . . 2 . . . . 1 2 . 3 . Tunneler 3 | . . . . 1 . 1 1 . . . . . . . . . . . . . . . . . . . . . . . . . Hauler 20 | . 2 . 4 . . . 6 . . . . . 2 . . . 3 3 . . . . . . . . . . . . . . Recycler 13 | . . . 2 . . 1 . 2 . . . . 5 . . . 1 . . . . . . . . . . . . . 2 . Minesweeper 1 | . . . . . . . . . 1 . . . . . . . . . . . . . . . . . . . . . . . Operator 10 | . . . . . . . . . . . . . 1 . . 9 . . . . . . . . . . . . . . . . Watcher 15 | . . . 2 . . . 1 4 . . . . 2 1 . . . 1 . . . . 1 . . . . 1 1 . 1 . Swarmer 67 | . . 5 . 6 . 3 11 4 4 . . . 6 4 . . . . . . . . 7 2 4 . . . . . 5 6 Saboteur 5 | . . . . . . . . . . . . . 1 . . . . . . . . . . . . . . . . . . 4 Grunt 138 | . 10 . 6 . . 5 18 12 4 1 . . 9 10 . . . 8 . 3 . . 7 5 . 6 . 4 8 . 8 14 Brawler 4 | . . . . . . 1 1 . . . . . . . . . . . . . . . 1 . . . . . . . . 1 Duelist 9 | . . . . . . . 2 . . 1 . . . . . . . . . . . . . . . . . . . . 1 5 Protector 1 | . . . . . . . . . . . . . 1 . . . . . . . . . . . . . . . . . . . Researcher 1 | . . . . . . . . . . . . . . . . . . . . . . . . . . . . . 1 . . . Sentry 47 | . . . 5 . . . 8 3 . . . . 4 4 . 1 . 1 . 1 . . 5 1 . . . 1 2 . 7 4 Specialist 7 | . . . . . . . . . . . . . 1 . . . . . . . . . 1 . . 1 . . . . 4 . Hunter 28 | . . . . . . 2 . 1 . . . . 6 . . . 2 1 . . . 4 . . . . 2 . 1 2 7 . Programmer 38 | . . . . . . . . 6 . 1 . 1 4 . . . . 4 . . . . 4 . . . . . 7 1 5 5 Heavy 3 | . . . . . . . 1 . . . . . . . . . . . . . . . . . . . . . . . 2 . Q-Series 6 | . . . . . . . . . . . . . . . . . . . . . . . . . . . . . . . 6 . Behemoth 3 | . . . . . . . . . . . . . 1 1 . . . . . . . . . . . 1 . . . . . . M Guard 2 | . . . . . . . . . . . . . . . . . . . . . . . . . . . . . . . . 2 Enhanced Grunt 3 | . . . . . . . . . . . . 1 . . . 2 . . . . . . . . . . . . . . . . Combat Programmer 2 | . . . . . . . . . . . . . . . . . . . . . . . . . . . . . . . . 2 Striker 3 | . . . . . . . . . . . . . . . . . . . . . . . . . . 2 . . . 1 . . Packrat 4 | . . . . . . . . . . . . . . . . . . . . 2 . 2 . . . . . . . . . . Assembled 3 | . . 3 . . . . . . . . . . . . . . . . . . . . . . . . . . . . . . Thug 1 | . . . . . . . . . . . . . . 1 . . . . . . . . . . . . . . . . . . Butcher 1 | . . . . . . . . . . . . . . 1 . . . . . . . . . . . . . . . . . . Guerrilla 1 | . . . . . . . . . . . . . . 1 . . . . . . . . . . . . . . . . . . Best Kill Streak 20 | . 2 3 7 3 . 4 12 5 4 3 . 1 19 8 . 5 3 5 . 3 . 2 6 7 4 6 2 8 9 2 20 9 Combat Bots Only 14 | . 2 3 2 3 . 3 10 4 4 3 . 1 9 8 . 1 2 2 . 3 . 2 5 7 4 6 2 5 7 2 14 9 Max Kills in Single Turn 7 | . 1 3 1 2 . 2 4 2 3 1 . 1 7 2 . 1 1 3 . 1 . 1 5 2 4 3 1 2 2 1 5 3 Gunslinging . | . . . . . . . . . . . . . . . . . . . . . . . . . . . . . . . . . Exploded 5 | . . 3 . 2 . 2 3 2 3 . . . 5 2 . . . 2 . 1 . . 4 2 4 3 1 . . 1 3 3 Melee 1 | . . . 1 . . . . . . . . . 1 . . . . 1 . . . . . . . . . . . . . . Uniques/NPCs Destroyed . | . . . . . . . . . . . . . . . . . . . . . . . . . . . . . . . . . Combat | -11 -10 -10 -9 -9 -9 -8 -8 -7 -7 -7 -7 -6 -6 -6 -6 -6 -6 -5 -5 -5 -5 -4 -4 -4 -4 -4 -3 -3 -3 -2 -1 -1 -------- Run | Scr Mat Min Mat Min Exi Min Mat Fac Low Low Dat Pro Fac Ext Cet Arc Hub Fac Upp Upp Zhi Pro Fac Upp Upp War Pro Res Tes Res Acc Com Damage Taken 34947 | . 452 109 713 45 . 457 2024 1336 233 45 . 103 2900 1588 . . 3242 1534 . 211 . 712 1687 295 101 32 164 397 2596 737 5195 8039 Core 3669 | . 57 . 129 9 . 94 424 63 18 . . 16 169 123 . . 491 116 . . . 25 86 18 16 . 8 49 157 . 209 1392 Absorbed by Shields 3465 | . . . . . . . 204 312 51 . . . 630 108 . . . . . . . . 417 94 . 10 49 141 148 . 725 576 Reduced by Siege Mode 161 | . . . . . . . . . . . . . . . . . 30 . . . . . 4 . . . . 27 22 . 78 . Redirected to Shielding 258 | . . . . . . . . 102 . . . . . . . . . . . . . 156 . . . . . . . . . . Regen/Repaired (Parts) 5647 | . . . . . . . . 152 . . . . . . . . . 745 . . . . . . . . . . 941 773 2130 906 Core Remaining (%) 69 | 100 . 77 . . . 42 22 . . . . 86 . . . . 7 . . . . 85 . . . . 88 . 84 100 . . Volleys Fired 1060 | . 41 9 50 5 . 23 117 80 14 7 . 8 97 47 4 28 20 36 . 11 . 18 60 17 16 9 6 18 70 30 130 89 Largest 5 | . 2 1 2 1 . 2 3 2 2 1 . 2 3 3 1 3 3 3 . 3 . 1 3 3 1 2 3 4 4 4 5 3 Hottest 323 | . 85 30 85 30 . 81 78 85 85 60 . 85 173 74 72 95 103 181 . 127 . 113 181 179 113 66 99 132 214 280 323 300 Shots Fired 2115 | . 82 9 97 5 . 35 330 122 19 7 . 10 142 125 4 66 44 67 3 20 . 22 142 31 19 12 12 54 175 51 298 112 Gun 1344 | . 82 . 96 1 . 16 328 47 5 . . 2 47 117 4 58 43 41 3 9 . 1 94 12 2 6 10 48 124 26 118 4 Cannon 562 | . . . . . . 10 . 72 8 7 . 4 76 . . . . 22 . 4 . 7 44 14 16 . . 6 51 20 131 70 Launcher 196 | . . 9 1 4 . 9 2 3 6 . . 4 19 8 . 8 1 4 . 7 . 14 4 5 1 . . . . . 49 38 Special 13 | . . . . . . . . . . . . . . . . . . . . . . . . . . 6 2 . . 5 . . Kinetic 1313 | . 44 . 71 1 . 16 328 119 13 7 . 6 107 . . 56 43 41 3 13 . 1 94 12 2 6 10 48 124 26 118 4 Thermal 503 | . 38 . 25 . . . . . . . . . 16 117 4 2 . 22 . . . 7 44 14 16 . . 6 51 15 78 48 Explosive 63 | . . 9 1 4 . 9 2 3 2 . . . 9 8 . . 1 . . 2 . . . . . 6 2 . . 5 . . Electromagnetic 208 | . . . . . . 10 . . 4 . . 4 10 . . 8 . 4 . 5 . 14 4 5 1 . . . . 5 89 45 Entropic 28 | . . . . . . . . . . . . . . . . . . . . . . . . . . . . . . . 13 15 Robot Hit Streak 38 | . 10 2 16 6 . 11 10 11 7 4 . 5 18 11 . 16 6 10 . 12 . 5 12 12 . 14 7 24 24 8 38 16 Robot Miss Streak 5 | . 3 . 4 . . 2 5 4 3 1 . 2 2 2 . 1 2 2 . 1 . . 2 1 . 2 2 1 5 3 3 2 Penetration Max 2 | . . . . . . . . 1 . . . . 1 . . 1 1 1 . . . . 2 . . . . 1 1 . 1 . Secondary Targets 9 | . 1 . 1 . . . 3 . . . . . . 1 . 1 . . . . . . 1 . . . . 1 . . . . Max Gunslinging Chain 1 | . 1 . 1 . . . 1 . . . . . . 1 . 1 . . . . . . 1 . . . . 1 . . . . Capacitor 5 | . . . . . . . . . . . . . . . . . . . . . . . . . . . . . . . . 5 Shots Hit Robots 1368 | . 56 2 88 2 . 26 202 77 9 4 2 3 87 133 . 47 33 59 . 16 5 1 87 18 . 8 8 37 108 27 162 61 Core Hits 885 | . 24 10 36 9 . 22 85 40 13 3 . 4 99 52 . 31 12 30 . 9 1 6 52 13 4 23 4 21 52 11 130 89 Critical Kills 22 | . . . . . . . . 1 . . . . . . . 5 2 2 . 1 . . 3 1 . . . 1 5 . 1 . Critical Parts Destroyed 32 | . . . 1 . . 1 3 . . . . . . . . 3 3 5 . 3 . . 4 . . . . . 4 3 2 . Critical Strikes 94 | . . . 5 . . 1 3 5 2 1 . . 8 8 . 8 5 7 . 5 . . 7 1 . . 1 1 10 4 7 5 Burn 14 | . . . 4 . . . . . . . . . 2 8 . . . . . . . . . . . . . . . . . . Meltdown 1 | . . . . . . . . . . . . . . . . . . . . . . . 1 . . . . . . . . . Destroy 44 | . . . . . . . 2 1 . . . . . . . 8 3 2 . 4 . . 6 1 . . . 1 10 3 3 . Blast 13 | . . . . . . . . 4 2 1 . . 6 . . . . . . . . . . . . . . . . . . . Smash 11 | . . . 1 . . 1 1 . . . . . . . . . 2 5 . 1 . . . . . . . . . . . . Sever 2 | . . . . . . . . . . . . . . . . . . . . . . . . . . . 1 . . 1 . . Sunder 9 | . . . . . . . . . . . . . . . . . . . . . . . . . . . . . . . 4 5 Melee Attacks 176 | . . . 27 . . 4 10 5 . . 2 . 2 48 1 1 16 36 . 3 8 . 5 . . 7 1 . . . . . Impact 120 | . . . 27 . . 4 10 . . . . . 2 . 1 . 16 36 . 3 8 . 5 . . 7 1 . . . . . Slashing . | . . . . . . . . . . . . . . . . . . . . . . . . . . . . . . . . . Piercing . | . . . . . . . . . . . . . . . . . . . . . . . . . . . . . . . . . Sneak Attacks 82 | . . . 5 . . 1 2 5 . . 2 . . 47 . 1 6 11 . 2 . . . . . . . . . . . . Combat Hostiles 2 | . . . . . . . . 1 . . . . . . . . . 1 . . . . . . . . . . . . . . Follow-up Attacks . | . . . . . . . . . . . . . . . . . . . . . . . . . . . . . . . . . Damage Inflicted 63513 | . 661 488 1758 457 . 1154 3992 3822 600 232 . 228 6368 3063 . 1328 1280 3790 . 682 401 507 3727 830 102 2854 416 1042 3843 1295 8852 9741 Guns 19566 | . 641 . 842 12 . 150 3592 614 32 . . 20 698 2210 . 1123 642 946 . 131 . . 1415 222 . 93 118 1042 2607 488 1875 53 Cannons 17488 | . . . . . . 189 . 2636 197 232 . 115 2514 . . . . 270 . 97 . 41 988 125 . . . . 988 189 3104 5803 Explosions 21290 | . . 488 36 445 . 539 138 570 371 . . 93 3075 853 . 205 24 835 . 300 . 466 1218 483 102 2545 258 . 248 410 3768 3820 Melee 4363 | . . . 880 . . 276 252 . . . . . . . . . 583 1719 . 154 401 . 98 . . . . . . . . . Ramming 342 | . 20 . . . . . 10 2 . . . . 81 . . . 31 20 . . . . 8 . . . . . . . 105 65 Kinetic 22115 | . 238 . 528 12 . 150 3592 3250 229 232 . 135 2947 . . 1073 642 946 . 228 . . 1415 222 . 93 118 1042 2607 488 1875 53 Thermal 10100 | . 403 . 314 . . . . . . . . . 654 2210 . 50 . 504 . . . 41 1794 217 . . . . 988 104 1389 1432 Explosive 9256 | . . 488 36 445 . 539 138 570 219 . . . 2313 853 . . 24 418 . . . . . . . 2545 258 . . 410 . . Electromagnetic 11490 | . . . . . . 189 . . 152 . . 93 373 . . 205 . 183 . 300 . 466 412 391 102 . . . 248 85 4604 3687 Impact 4363 | . . . 880 . . 276 252 . . . . . . . . . 583 1719 . 154 401 . 98 . . . . . . . . . Slashing 464 | . . . . . . . . . . . . . . . . . . . . . . . . . . 216 40 . . 208 . . Piercing . | . . . . . . . . . . . . . . . . . . . . . . . . . . . . . . . . . Entropic 5383 | . . . . . . . . . . . . . . . . . . . . . . . . . . . . . . . 879 4504 Highest Corruption 84 | . . . . . . 1 4 3 2 3 3 6 . . . 4 19 7 7 7 7 24 5 5 5 5 1 . 13 . 24 84 Average Corruption 7 | . . . . . . 1 4 1 2 2 3 3 . . . 2 12 5 7 7 3 10 3 5 5 5 1 . 8 . 16 38 Corruption Purged 14 | . . . . . . . . 5 . . . . . . . 4 . . . . 5 . . . . . . . . . . . Corruption Blocked 19 | . . . . . . . . . . . . . . . . . . . . . . . . . . . . . . 19 . . Effects 365 | . . . . . . . 29 17 13 20 1 10 . . . 2 4 24 15 19 9 24 10 21 30 1 . . 27 . 41 48 Message Errors 73 | . . . . . . . 12 2 3 2 1 4 . . . 1 . 4 1 4 3 6 3 3 9 . . . 5 . 4 6 Matter Fused 93 | . . . . . . . 3 5 4 9 . 3 . . . . 1 5 3 8 2 7 5 8 4 . . . 7 . 9 10 Heat Flow Errors 42 | . . . . . . . 3 1 1 4 . . . . . 1 1 5 1 1 2 2 . 2 4 1 . . 3 . 5 5 Energy Discharges 45 | . . . . . . . 6 . 1 3 . . . . . . . 3 2 2 1 4 1 2 4 . . . 2 . 6 8 Parts Rejected 4 | . . . . . . . 1 2 . . . . . . . . 1 . . . . . . . . . . . . . . . Data Loss (minor) 37 | . . . . . . . 1 3 2 2 . 2 . . . . . 2 2 2 1 . 1 4 6 . . . 2 . 2 5 Data Loss (major) 19 | . . . . . . . 2 2 1 . . . . . . . . 1 2 1 . 1 . 1 . . . . 3 . 4 1 Misfires 24 | . . . . . . . 1 1 1 . . 1 . . . . . 3 3 1 . 4 . . 3 . . . 2 . 2 2 Alerts 6 | . . . . . . . . . . . . . . . . . . . 1 . . . . 1 . . . . 1 . 1 2 Misdirections 6 | . . . . . . . . . . . . . . . . . 1 . . . . . . . . . . . . . . 5 Weapon Failures 16 | . . . . . . . . 1 . . . . . . . . . 1 . . . . . . . . . . 2 . 8 4 Overload Shots 3 | . . . . . . . . . . . . . . . 3 . . . . . . . . . . . . . . . . . Overflow Damage 3871 | . . 8 180 22 . 160 159 307 3 22 . . 220 18 . . 191 627 . 149 241 . 166 11 . . . . 96 2 48 1241 Projectiles 1661 | . . . . . . . . 280 3 22 . . 68 . . . . 39 . . . . 55 . . . . . 15 2 4 1173 Explosions 600 | . . 8 . 22 . 5 . 27 . . . . 152 18 . . . 64 . . . . 111 11 . . . . 81 . 33 68 Melee 1610 | . . . 180 . . 155 159 . . . . . . . . . 191 524 . 149 241 . . . . . . . . . 11 . Knockbacks 34 | . . . 3 . . . 1 8 . 1 . 1 13 . . . 2 5 . . . . . . . . . . . . . . Impact 10 | . . . 3 . . . 1 . . . . . 1 . . . 1 4 . . . . . . . . . . . . . . Kinetic 21 | . . . . . . . . 7 . 1 . 1 12 . . . . . . . . . . . . . . . . . . . Secondary 3 | . . . . . . . . 1 . . . . . . . . 1 1 . . . . . . . . . . . . . . Self-Inflicted Damage 2492 | . . 67 13 . . 133 27 40 44 . . . 202 135 . . 29 23 . 10 . 46 54 . 24 . . . 578 . 384 683 Shots 77 | . . 3 1 . . 4 1 1 2 . . . 3 3 . . 1 1 . 2 . 3 1 . 1 . . . 6 . 19 25 Rammed 31 | . 4 . . . . . 2 1 . . . . 10 . . . 3 1 . . . . 4 . . . . . . . 4 2 Targets Rammed 33 | . 4 . . . . . 2 1 . . . . 11 . . . 3 1 . . . . 4 . . . . . . . 5 2 Kicked . | . . . . . . . . . . . . . . . . . . . . . . . . . . . . . . . . . Crushed 2 | . . . . . . . . . . . . . 1 . . . . . . . . . . . . . . . . . 1 . Highest Temperature 702 | . 316 . 238 . . 353 702 476 207 252 . 107 372 31 . 68 95 239 93 154 212 212 241 224 238 93 . 72 453 248 285 338 Average Temperature 114 | . 110 . 97 . . 118 166 145 76 88 . 39 105 11 . 52 18 72 71 83 110 104 80 58 67 47 . 19 118 82 88 99 Received Heat Transfer 5249 | . 246 . 306 . . 117 628 376 84 . . . 455 538 . . 165 513 . 57 . . 242 46 . 7 . 73 349 . 234 813 Effects 57 | . 2 . 3 . . 1 26 15 . . . . 2 . . . . . . . . . . . . . . . 5 1 2 . Shutdowns 10 | . . . . . . . 2 7 . . . . . . . . . . . . . . . . . . . . 1 . . . Energy Bleed 9 | . . . . . . . 1 4 . . . . 2 . . . . . . . . . . . . . . . . . 2 . Interference 20 | . 2 . 3 . . 1 7 3 . . . . . . . . . . . . . . . . . . . . 3 1 . . Matter Decay 3 | . . . . . . . 3 . . . . . . . . . . . . . . . . . . . . . . . . . Short Circuit 3 | . . . . . . . 3 . . . . . . . . . . . . . . . . . . . . . . . . . Damage (minor) 5 | . . . . . . . 3 1 . . . . . . . . . . . . . . . . . . . . 1 . . . Damage (major) 4 | . . . . . . . 4 . . . . . . . . . . . . . . . . . . . . . . . . . Damage (core) 3 | . . . . . . . 3 . . . . . . . . . . . . . . . . . . . . . . . . . Siege Activations 14 | . . . . . . . . . . . . . . . . 2 1 1 . . . . 1 . . . . 1 4 . 4 . Total Turns 382 | . . . . . . . . . . . . . . . . 156 20 10 . . . . 14 . . . . 38 68 . 76 . Longest Duration 154 | . . . . . . . . . . . . . . . . 154 20 10 . . . . 14 . . . . 38 28 . 33 . Robots Corrupted 26 | . . . . . . . . . . . . . . . . 2 . 1 . 1 . 4 . . . . . . . . 7 11 Combat Hostiles 24 | . . . . . . . . . . . . . . . . . . 1 . 1 . 4 . . . . . . . . 7 11 Parts Fried 124 | . . . 9 . . 1 7 . . . . . 1 . . 6 2 12 . 2 . 3 2 5 . . . . . 1 39 34 Impact Corruptions 53 | . . . 8 . . 4 4 . . . . . . . . . 8 13 . 4 11 . . . . . . . . . 1 . Robots Melted 4 | . . . . . . . . . . . . . 1 2 . . . . . . . . 1 . . . . . . . . . Combat Hostiles 4 | . . . . . . . . . . . . . 1 2 . . . . . . . . 1 . . . . . . . . . Parts Melted 27 | . 2 . 2 . . . . . . . . . 1 17 . . . . . . . . 3 . . . . . . . 1 1 Heat Transferred 11351 | . 962 . 1036 . . . . . . . . . 872 4798 . 100 . 372 . . . 37 1351 161 . . . . 222 . 940 500 Parts Sabotaged . | . . . . . . . . . . . . . . . . . . . . . . . . . . . . . . . . . Parts Stolen . | . . . . . . . . . . . . . . . . . . . . . . . . . . . . . . . . . Parts Stripped . | . . . . . . . . . . . . . . . . . . . . . . . . . . . . . . . . . Power Chain Reactions 16 | . . . . . . . . . . . . . 2 . . 1 . . . . . . 2 1 . . . . 2 . 4 4 Missiles Intercepted . | . . . . . . . . . . . . . . . . . . . . . . . . . . . . . . . . . Alert | -11 -10 -10 -9 -9 -9 -8 -8 -7 -7 -7 -7 -6 -6 -6 -6 -6 -6 -5 -5 -5 -5 -4 -4 -4 -4 -4 -3 -3 -3 -2 -1 -1 ------- Run | Scr Mat Min Mat Min Exi Min Mat Fac Low Low Dat Pro Fac Ext Cet Arc Hub Fac Upp Upp Zhi Pro Fac Upp Upp War Pro Res Tes Res Acc Com Peak Influence 1782 | . 211 448 328 205 . 332 847 801 . . . . 978 820 811 553 307 625 . . . . 680 . . . . 224 383 260 1252 1782 Initial 800 | . . 31 29 115 . . 33 326 . . . . 23 478 333 324 . 102 . . . . 31 . . . . . 126 182 17 800 Average 322 | . 61 247 217 124 . 186 526 548 . . . . 252 619 571 133 97 277 . . . . 205 . . . . 110 202 137 515 1298 Maximum Alert Level 5 | . 1 2 1 1 . 1 3 3 . . . . 3 3 3 2 1 2 . . . . 2 . . . . 1 1 1 4 5 Low Security (%) 43 | 100 89 23 41 59 . 50 14 . . . . . 69 . . 67 80 32 . . . . 61 . . . . 78 48 69 39 . Level 1 25 | . 10 69 58 40 . 49 7 16 . . . . 7 . 15 22 19 51 . . . . 17 . . . . 21 51 30 13 . Level 2 21 | . . 7 . . . . 60 78 . . . . 4 71 55 9 . 16 . . . . 21 . . . . . . . 7 . Level 3 6 | . . . . . . . 16 4 . . . . 17 28 28 . . . . . . . . . . . . . . . 23 25 Level 4 2 | . . . . . . . . . . . . . . . . . . . . . . . . . . . . . . . 16 60 Level 5 . | . . . . . . . . . . . . . . . . . . . . . . . . . . . . . . . . . High Security . | . . . . . . . . . . . . . . . . . . . . . . . . . . . . . . . . 13 Max Security . | . . . . . . . . . . . . . . . . . . . . . . . . . . . . . . . . . Squads Dispatched 90 | . 2 . 4 1 . . 8 8 . . . . 12 3 . . 3 8 . . . . 11 . . . . . 6 1 14 9 Investigation 15 | . 2 . 1 1 . . 1 2 . . . . 1 1 . . . 3 . . . . 1 . . . . . . 1 . 1 Extermination 17 | . . . . . . . . 5 . . . . 2 . . . . 1 . . . . 1 . . . . . 3 . 4 1 Reinforcement 36 | . . . 3 . . . 4 . . . . . 8 . . . 3 2 . . . . 6 . . . . . 2 . 7 1 Assault 11 | . . . . . . . 2 1 . . . . . 2 . . . . . . . . . . . . . . . . . 6 Garrison 11 | . . . . . . . 1 . . . . . 1 . . . . 2 . . . . 3 . . . . . 1 . 3 . Intercept . | . . . . . . . . . . . . . . . . . . . . . . . . . . . . . . . . . Searches Triggered . | . . . . . . . . . . . . . . . . . . . . . . . . . . . . . . . . . Data Miner Redirects 7 | . . . . . . . . . . . . . 1 1 . . . 3 . . . . . . . . . . . . . 2 Construction Impeded 6 | . . . . . . . . . . . . . 2 . . . 1 1 . . . . 1 . . . . . . . 1 . Haulers Reinforced 3 | . . . . . . . . . . . . . 2 . . . . 1 . . . . . . . . . . . . . . Active Scanning Responses . | . . . . . . . . . . . . . . . . . . . . . . . . . . . . . . . . . Cargo Convoy Interrupts 1 | . . . . . . . . . . . . . 1 . . . . . . . . . . . . . . . . . . . Stealth | -11 -10 -10 -9 -9 -9 -8 -8 -7 -7 -7 -7 -6 -6 -6 -6 -6 -6 -5 -5 -5 -5 -4 -4 -4 -4 -4 -3 -3 -3 -2 -1 -1 --------- Run | Scr Mat Min Mat Min Exi Min Mat Fac Low Low Dat Pro Fac Ext Cet Arc Hub Fac Upp Upp Zhi Pro Fac Upp Upp War Pro Res Tes Res Acc Com Distress Signals 30 | . . . 4 . . . 4 3 . . . . 2 2 1 . 2 . . . . . . . . . . . 2 5 3 2 Communications Jammed 16 | . . . . . . . . . . . . . . . . . . 2 . . . . 6 . . . . 3 1 . 4 . Distress Signals 12 | . . . . . . . . . . . . . . . . . . 1 . . . . 6 . . . . 3 . . 2 . Times Spotted 632 | . 19 11 22 5 . 11 63 40 8 3 . 5 52 42 10 14 23 22 . 5 . 4 42 9 4 17 2 8 33 21 60 77 Peak Tracking Total 14 | . 4 4 4 3 . 3 5 4 4 1 . 4 12 7 5 2 12 4 . 3 . 2 8 7 4 7 2 6 6 7 9 14 Tactical Retreats 27 | . 1 . 1 . . . 3 . . . . . 1 1 1 . 1 1 . 1 . . 2 1 . . . 1 . 3 4 5 Traps | -11 -10 -10 -9 -9 -9 -8 -8 -7 -7 -7 -7 -6 -6 -6 -6 -6 -6 -5 -5 -5 -5 -4 -4 -4 -4 -4 -3 -3 -3 -2 -1 -1 ------- Run | Scr Mat Min Mat Min Exi Min Mat Fac Low Low Dat Pro Fac Ext Cet Arc Hub Fac Upp Upp Zhi Pro Fac Upp Upp War Pro Res Tes Res Acc Com Traps Triggered 11 | . 1 . . . . . . 2 . . . . . 1 . . . . . . . . 1 . . . . . 3 . . 3 Indirectly 1 | . . . . . . . . . . . . . . . . . . . . . . . . . . . . . . . . 1 Trap Hack Attempts . | . . . . . . . . . . . . . . . . . . . . . . . . . . . . . . . . . Triggered . | . . . . . . . . . . . . . . . . . . . . . . . . . . . . . . . . . Disarmed 7 | . 7 . . . . . . . . . . . . . . . . . . . . . . . . . . . . . . . Reprogrammed . | . . . . . . . . . . . . . . . . . . . . . . . . . . . . . . . . . Reused . | . . . . . . . . . . . . . . . . . . . . . . . . . . . . . . . . . Traps Extracted . | . . . . . . . . . . . . . . . . . . . . . . . . . . . . . . . . . Installed . | . . . . . . . . . . . . . . . . . . . . . . . . . . . . . . . . . Triggered 13 | . . . . . . . . . . 3 . . . . . . . . . . . . . 3 . 7 . . . . . . Machines | -11 -10 -10 -9 -9 -9 -8 -8 -7 -7 -7 -7 -6 -6 -6 -6 -6 -6 -5 -5 -5 -5 -4 -4 -4 -4 -4 -3 -3 -3 -2 -1 -1 ---------- Run | Scr Mat Min Mat Min Exi Min Mat Fac Low Low Dat Pro Fac Ext Cet Arc Hub Fac Upp Upp Zhi Pro Fac Upp Upp War Pro Res Tes Res Acc Com Machines Disabled 79 | . . 1 . . . 4 1 7 . . . . 7 2 8 4 7 8 . 1 1 . 6 2 1 . . . 11 1 2 5 Max in Single Turn 5 | . . 1 . . . 2 1 2 . . . . 2 . 1 1 1 3 . 1 1 . 2 1 1 . . . 5 1 1 1 Garrison Access 6 | . . . . . . . . . . . . . 1 . . . 1 1 . . . . 1 . . . . 1 1 . . . Network Hub 2 | . . . . . . . . . . . . . . . . . 2 . . . . . . . . . . . . . . . Machines Sabotaged . | . . . . . . . . . . . . . . . . . . . . . . . . . . . . . . . . . Garrisons Compromised . | . . . . . . . . . . . . . . . . . . . . . . . . . . . . . . . . . Overloaded Fab Kills . | . . . . . . . . . . . . . . . . . . . . . . . . . . . . . . . . . Hacking | -11 -10 -10 -9 -9 -9 -8 -8 -7 -7 -7 -7 -6 -6 -6 -6 -6 -6 -5 -5 -5 -5 -4 -4 -4 -4 -4 -3 -3 -3 -2 -1 -1 --------- Run | Scr Mat Min Mat Min Exi Min Mat Fac Low Low Dat Pro Fac Ext Cet Arc Hub Fac Upp Upp Zhi Pro Fac Upp Upp War Pro Res Tes Res Acc Com Machines Accessed 105 | . 11 1 7 1 1 1 10 11 1 . 4 . 6 3 2 . 6 10 . . 4 . 3 2 . 1 . 3 11 1 3 2 Terminals 59 | . 8 1 5 . . 1 5 5 . . . . 5 3 2 . 5 4 . . . . 2 . . . . . 8 . 3 2 Fabricators 5 | . . . . . . . . 2 . . . . . . . . . 2 . . . . . . . . . 1 . . . . Repair Stations 11 | . 1 . . . . . 2 3 . . . . . . . . . 3 . . . . . . . . . 1 1 . . . Recycling Units 4 | . 2 . 1 . . . 1 . . . . . . . . . . . . . . . . . . . . . . . . . Scanalyzers 4 | . . . 1 . . . 2 . . . . . . . . . . . . . . . . . . . . . 1 . . . Garrison Access 8 | . . . . . . . . 1 . . . . 1 . . . 1 1 . . . . 1 . . . . 1 1 1 . . Total Hacks 313 | . 28 2 12 1 1 2 26 24 1 . 31 . 11 13 3 . 12 42 . . 17 . 16 5 . 1 . 10 39 1 10 5 Successful 163 | . 21 1 8 1 1 1 12 8 1 . 31 . 3 4 1 . 4 17 . . 17 . 3 5 . 1 . 2 18 . 2 1 Failed 149 | . 6 1 4 . . 1 14 16 . . . . 8 9 2 . 8 25 . . . . 13 . . . . 8 21 1 8 4 Catastrophic 33 | . . . 2 . . . . 2 . . . . 3 1 . . 2 5 . . . . 3 . . . . 2 9 1 1 2 Database Lockouts 1 | . 1 . . . . . . . . . . . . . . . . . . . . . . . . . . . . . . . Manual 104 | . 12 3 7 . . 2 11 2 . . . . 5 9 1 . 10 7 . 1 . . 9 . . 1 . 5 11 . 4 4 Terminals 169 | . 24 2 10 . . 2 12 11 . . . . 9 13 3 . 11 19 . . . . 13 . . . . . 25 . 10 5 Fabricators 18 | . . . . . . . . 5 . . . . . . . . . 8 . . . . . . . . . 5 . . . . Repair Stations 35 | . 2 . . . . . 4 7 . . . . . . . . . 13 . . . . . . . . . 2 7 . . . Recycling Units 4 | . 2 . 1 . . . 1 . . . . . . . . . . . . . . . . . . . . . . . . . Scanalyzers 15 | . . . 1 . . . 9 . . . . . . . . . . . . . . . . . . . . . 5 . . . Garrison Access 15 | . . . . . . . . 1 . . . . 2 . . . 1 2 . . . . 3 . . . . 3 2 1 . . Terminal Hacks 107 | . 13 1 3 1 1 1 3 3 1 . 31 . 2 4 1 . 1 5 . . 17 . 1 5 . 1 . . 9 . 2 1 Record 23 | . . . . . 1 . . . . . 11 . . . 1 . . . . . 5 . . 4 . . . . 1 . . . Part Schematic 16 | . . . . . . 1 . . . . 11 . . . . . . . . . 4 . . . . . . . . . . . Robot Schematic 6 | . . . . . . . . . . . 6 . . . . . . . . . . . . . . . . . . . . . Robot Analysis 6 | . 1 1 . . . . . . . . . . . . . . . . . . 4 . . . . . . . . . . . Prototype ID Bank 9 | . 2 . . . . . . . . . 3 . . . . . . . . . 4 . . . . . . . . . . . Open Door 8 | . . . . 1 . . . . 1 . . . 1 . . . . . . . . . . 1 . 1 . . 1 . 1 1 Branch Access Points 4 | . . . . . . . . 1 . . . . 1 . . . . 1 . . . . 1 . . . . . . . . . Terminal Index 2 | . . . 1 . . . . . . . . . . . . . . . . . . . . . . . . . . . 1 . Fabricator Index 1 | . . . . . . . . . . . . . . . . . . 1 . . . . . . . . . . . . . . Scanalyzer Index 1 | . . . . . . . . . . . . . . . . . . . . . . . . . . . . . 1 . . . Alert Level 7 | . . . 1 . . . 1 1 . . . . . 1 . . . 1 . . . . . . . . . . 2 . . . Unreport Threat 6 | . . . . . . . 1 . . . . . . 2 . . . . . . . . . . . . . . 3 . . . Locate Traps 12 | . 6 . . . . . 1 1 . . . . . 1 . . 1 1 . . . . . . . . . . 1 . . . Disarm Traps 3 | . 3 . . . . . . . . . . . . . . . . . . . . . . . . . . . . . . . Hauler Manifests 3 | . 1 . 1 . . . . . . . . . . . . . . 1 . . . . . . . . . . . . . . Fabricator Hacks 4 | . . . . . . . . 1 . . . . . . . . . 3 . . . . . . . . . . . . . . Load Schematic 3 | . . . . . . . . 1 . . . . . . . . . 2 . . . . . . . . . . . . . . Build 1 | . . . . . . . . . . . . . . . . . . 1 . . . . . . . . . . . . . . Repair Station Hacks 14 | . 1 . . . . . 1 4 . . . . . . . . . 6 . . . . . . . . . 1 1 . . . Scan Component 10 | . 1 . . . . . 1 2 . . . . . . . . . 4 . . . . . . . . . 1 1 . . . Repair 4 | . . . . . . . . 2 . . . . . . . . . 2 . . . . . . . . . . . . . . Recycling Unit Hacks . | . . . . . . . . . . . . . . . . . . . . . . . . . . . . . . . . . Scanalyzer 11 | . . . 1 . . . 6 . . . . . . . . . . . . . . . . . . . . . 4 . . . Insert Component 7 | . . . 1 . . . 3 . . . . . . . . . . . . . . . . . . . . . 3 . . . Analyze 4 | . . . . . . . 3 . . . . . . . . . . . . . . . . . . . . . 1 . . . Garrison Access Hacks 5 | . . . . . . . . . . . . . . . . . 1 1 . . . . 1 . . . . 1 1 . . . Seal Access 5 | . . . . . . . . . . . . . . . . . 1 1 . . . . 1 . . . . 1 1 . . . Unauthorized Hacks 22 | . 7 . 4 . . . 2 . . . . . 1 . . . 2 2 . . . . 1 . . . . . 3 . . . Terminals 16 | . 5 . 3 . . . 1 . . . . . . . . . 2 2 . . . . 1 . . . . . 2 . . . Track 2 | . 1 . 1 . . . . . . . . . . . . . . . . . . . . . . . . . . . . . Assimilate 1 | . . . . . . . . . . . . . . . . . . 1 . . . . . . . . . . . . . . Botnet 6 | . 3 . 1 . . . 1 . . . . . . . . . . . . . . . . . . . . . 1 . . . Detonate 2 | . . . . . . . . . . . . . . . . . 2 . . . . . . . . . . . . . . . Operators 5 | . 1 . 1 . . . . . . . . . . . . . . 1 . . . . 1 . . . . . 1 . . . Fabricators . | . . . . . . . . . . . . . . . . . . . . . . . . . . . . . . . . . Repair Stations . | . . . . . . . . . . . . . . . . . . . . . . . . . . . . . . . . . Recycling Units 4 | . 2 . 1 . . . 1 . . . . . . . . . . . . . . . . . . . . . . . . . Tunnel 4 | . 2 . 1 . . . 1 . . . . . . . . . . . . . . . . . . . . . . . . . Scanalyzers 1 | . . . . . . . . . . . . . . . . . . . . . . . . . . . . . 1 . . . Researchers 1 | . . . . . . . . . . . . . . . . . . . . . . . . . . . . . 1 . . . Garrison Access 1 | . . . . . . . . . . . . . 1 . . . . . . . . . . . . . . . . . . . Jam 1 | . . . . . . . . . . . . . 1 . . . . . . . . . . . . . . . . . . . Data Cores Recovered . | . . . . . . . . . . . . . . . . . . . . . . . . . . . . . . . . . Used . | . . . . . . . . . . . . . . . . . . . . . . . . . . . . . . . . . Hacking Detections 70 | . 7 . 6 . . 1 8 10 . . . . 6 3 1 . 5 7 . . . . 2 . . . . 1 8 1 3 1 Full Trace Events 8 | . . . . . . . 1 2 . . . . . 1 . . . 3 . . . . 1 . . . . . . . . . Feedback Events . | . . . . . . . . . . . . . . . . . . . . . . . . . . . . . . . . . Feedback Blocked . | . . . . . . . . . . . . . . . . . . . . . . . . . . . . . . . . . Robot Schematics Acquired 7 | . . . . . . . . . . . 6 . . . . . . . . . . . . . . . . . 1 . . . Robots Built . | . . . . . . . . . . . . . . . . . . . . . . . . . . . . . . . . . Authchips . | . . . . . . . . . . . . . . . . . . . . . . . . . . . . . . . . . Time . | . . . . . . . . . . . . . . . . . . . . . . . . . . . . . . . . . Total Robot Build Rating . | . . . . . . . . . . . . . . . . . . . . . . . . . . . . . . . . . Part Schematics Acquired 19 | . . . . . . 1 2 . . . 11 . . . . . . . . . 4 . . . . . . . 1 . . . Parts Built 1 | . . . . . . . . . . . . . . . . . . 1 . . . . . . . . . . . . . . Authchips . | . . . . . . . . . . . . . . . . . . . . . . . . . . . . . . . . . Time 51 | . . . . . . . . . . . . . . . . . . 51 . . . . . . . . . . . . . . Total Part Build Rating 1 | . . . . . . . . . . . . . . . . . . 1 . . . . . . . . . . . . . . Parts Repaired 3 | . . . . . . . . 2 . . . . . . . . . 1 . . . . . . . . . . . . . . Time 350 | . . . . . . . . 174 . . . . . . . . . 176 . . . . . . . . . . . . . . Parts Recycled . | . . . . . . . . . . . . . . . . . . . . . . . . . . . . . . . . . Recycled Matter . | . . . . . . . . . . . . . . . . . . . . . . . . . . . . . . . . . Retrieved Matter . | . . . . . . . . . . . . . . . . . . . . . . . . . . . . . . . . . Retrieved Components . | . . . . . . . . . . . . . . . . . . . . . . . . . . . . . . . . . Parts Scanalyzed 3 | . . . . . . . 2 . . . . . . . . . . . . . . . . . . . . . 1 . . . Part Schematics Acquired 3 | . . . . . . . 2 . . . . . . . . . . . . . . . . . . . . . 1 . . . Parts Damaged . | . . . . . . . . . . . . . . . . . . . . . . . . . . . . . . . . . Bothacking | -11 -10 -10 -9 -9 -9 -8 -8 -7 -7 -7 -7 -6 -6 -6 -6 -6 -6 -5 -5 -5 -5 -4 -4 -4 -4 -4 -3 -3 -3 -2 -1 -1 ------------ Run | Scr Mat Min Mat Min Exi Min Mat Fac Low Low Dat Pro Fac Ext Cet Arc Hub Fac Upp Upp Zhi Pro Fac Upp Upp War Pro Res Tes Res Acc Com Used RIF Installer . | . . . . . . . . . . . . . . . . . . . . . . . . . . . . . . . . . Robots Hacked 9 | . . . . . . . . 3 . . 1 . . 4 . 1 . . . . . . . . . . . . . . . . Non-combat 6 | . . . . . . . . 3 . . . . . 3 . . . . . . . . . . . . . . . . . . Combat 3 | . . . . . . . . . . . 1 . . 1 . 1 . . . . . . . . . . . . . . . . Robot Hacks Applied 13 | . . . . . . . . 4 . . 2 . . 6 . 1 . . . . . . . . . . . . . . . . parse_system 6 | . . . . . . . . . . . 2 . . 3 . 1 . . . . . . . . . . . . . . . . no_distress 5 | . . . . . . . . 2 . . . . . 3 . . . . . . . . . . . . . . . . . . find_chute 2 | . . . . . . . . 2 . . . . . . . . . . . . . . . . . . . . . . . . Relay Couplers Released 12 | . . . . . . . . . . . . . . . . . . 1 . . . . 3 . . . . . . 8 . . Machine Destruction 4 | . . . . . . . . . . . . . . . . . . 1 . . . . 3 . . . . . . . . . Programmers 8 | . . . . . . . . . . . . . . . . . . . . . . . . . . . . . . 8 . . Fabnet Peak Effective % . | . . . . . . . . . . . . . . . . . . . . . . . . . . . . . . . . . Robots Rewired 28 | . . . . . . . . 1 . . . . . 22 . . . . . . . . . 2 . 3 . . . . . . Allies Hacked . | . . . . . . . . . . . . . . . . . . . . . . . . . . . . . . . . . Hacks Repelled . | . . . . . . . . . . . . . . . . . . . . . . . . . . . . . . . . . Allies | -11 -10 -10 -9 -9 -9 -8 -8 -7 -7 -7 -7 -6 -6 -6 -6 -6 -6 -5 -5 -5 -5 -4 -4 -4 -4 -4 -3 -3 -3 -2 -1 -1 -------- Run | Scr Mat Min Mat Min Exi Min Mat Fac Low Low Dat Pro Fac Ext Cet Arc Hub Fac Upp Upp Zhi Pro Fac Upp Upp War Pro Res Tes Res Acc Com Total Allies 41 | . . 3 . . . . . 1 . . . 1 . 26 2 . . 1 . . . . . 4 . 3 . . . . . . Largest Group 14 | . . 3 1 . . . . 1 . . . 1 . 13 14 12 3 1 . . . . . 2 . 3 . . . . . . Highest-Rated Group 679 | . . 40 16 . . . . 12 . . . 96 . 515 679 617 117 26 . . . . . 84 . 195 . . . . . . Highest-Rated Ally 159 | . . 16 16 . . . . 12 . . . 96 . 159 159 159 39 26 . . . . . 47 . 65 . . . . . . Total Orders 10 | . . . . . . . . . . . . . . 2 . 6 . 1 . . . . . . . 1 . . . . . . STAY 5 | . . . . . . . . . . . . . . 1 . 2 . 1 . . . . . . . 1 . . . . . . FOLLOW 5 | . . . . . . . . . . . . . . 1 . 4 . . . . . . . . . . . . . . . . Ally Attacks 287 | . . 20 7 . . . . 3 . . . 16 . 101 75 21 41 . . . . . . 3 . . . . . . . . Total Damage 6595 | . . 173 46 . . . . 28 . . . 520 . 2392 1727 557 1073 . . . . . . 79 . . . . . . . . Kills 55 | . . 6 . . . . . 1 . . . 5 . 23 11 3 6 . . . . . . . . . . . . . . . Allies Corrupted 3 | . . . . . . . . . . . . . . . . 2 1 . . . . . . . . . . . . . . . Allies Melted 1 | . . . . . . . . . . . . . . . . . . . . . . . . . . 1 . . . . . . Intel | -11 -10 -10 -9 -9 -9 -8 -8 -7 -7 -7 -7 -6 -6 -6 -6 -6 -6 -5 -5 -5 -5 -4 -4 -4 -4 -4 -3 -3 -3 -2 -1 -1 ------- Run | Scr Mat Min Mat Min Exi Min Mat Fac Low Low Dat Pro Fac Ext Cet Arc Hub Fac Upp Upp Zhi Pro Fac Upp Upp War Pro Res Tes Res Acc Com Robot Analysis Total 6 | . 1 1 . . . . . . . . . . . . . . . . . . 4 . . . . . . . . . . . Derelict Logs Recovered 10 | . . 1 . 1 . . . . 1 2 . 1 . . . . . . 2 1 . . . . 1 . . . . . . . Drone Launches . | . . . . . . . . . . . . . . . . . . . . . . . . . . . . . . . . . Drone Recoveries . | . . . . . . . . . . . . . . . . . . . . . . . . . . . . . . . . . Exploration | -11 -10 -10 -9 -9 -9 -8 -8 -7 -7 -7 -7 -6 -6 -6 -6 -6 -6 -5 -5 -5 -5 -4 -4 -4 -4 -4 -3 -3 -3 -2 -1 -1 ------------- Run | Scr Mat Min Mat Min Exi Min Mat Fac Low Low Dat Pro Fac Ext Cet Arc Hub Fac Upp Upp Zhi Pro Fac Upp Upp War Pro Res Tes Res Acc Com Turns Passed 34560 | 80 1431 893 1132 969 565 900 2047 2433 1006 1115 199 676 1446 1466 292 3671 580 1339 528 773 469 652 1100 948 1003 901 438 335 1660 1229 1539 745 Spaces Moved 16284 | 45 771 576 658 695 419 590 1027 1157 475 544 108 320 560 785 139 513 286 575 321 445 260 364 488 519 539 484 236 127 640 662 663 293 Core 17 | 3 . . . . . . . . . . . . . . . . . . . . . . . . . . . . . . . 14 Treads 7628 | 42 771 396 11 . . 2 375 . . 3 . . 268 329 139 513 286 513 321 445 260 364 488 321 . . . 9 374 456 663 279 Legs . | . . . . . . . . . . . . . . . . . . . . . . . . . . . . . . . . . Wheels 8639 | . . 180 647 695 419 588 652 1157 475 541 108 320 292 456 . . . 62 . . . . . 198 539 484 236 118 266 206 . . Hover . | . . . . . . . . . . . . . . . . . . . . . . . . . . . . . . . . . Flight . | . . . . . . . . . . . . . . . . . . . . . . . . . . . . . . . . . Fastest Speed 50 | 50 160 120 120 120 135 120 115 130 195 180 180 195 120 120 160 160 160 160 162 162 162 162 160 160 160 160 175 160 160 145 150 50 Average Speed 160 | 152 160 147 125 134 135 134 143 165 196 195 180 195 172 140 160 160 160 181 162 162 162 162 162 165 166 163 175 178 198 161 157 159 Slowest Speed 325 | 160 160 160 240 135 135 160 163 210 210 243 195 195 240 240 160 160 160 325 162 162 162 162 163 175 175 175 175 240 245 233 233 246 Overloaded Moves . | . . . . . . . . . . . . . . . . . . . . . . . . . . . . . . . . . Propulsion Burnouts . | . . . . . . . . . . . . . . . . . . . . . . . . . . . . . . . . . Robots Hopped . | . . . . . . . . . . . . . . . . . . . . . . . . . . . . . . . . . Cave-ins Triggered . | . . . . . . . . . . . . . . . . . . . . . . . . . . . . . . . . . Exploration Rate (%) 58 | 5 98 95 55 99 88 98 94 29 67 76 75 53 19 85 62 97 33 17 63 55 60 55 22 67 86 69 45 6 74 31 25 21 Regions Visited 32 Branch Regions 22 Pre-discovered Areas 12 | . 2 1 1 . . . 1 . . 1 1 . . . . . . . . 1 3 . . . 1 . . . . . . . Known Exits Taken 22 | . . . . . . . . 1 1 1 1 1 1 1 1 1 1 1 1 1 1 1 1 1 1 1 1 1 1 . . . Unknown Exits Taken 10 | 1 1 1 1 1 1 1 1 . . . . . . . . . . . . . . . . . . . . . . 1 1 . Scrap Searched 15 | . . 2 . 2 . 1 . . . 2 . . . . . . . . 1 . . . . 1 4 . 2 . . . . . Spaces Dug 286 | . . 42 6 13 . 11 13 4 14 2 . . 18 . 1 . 17 15 . . . 4 9 6 8 2 10 1 16 9 38 27 Terrain Destroyed 1274 | . . 80 12 22 . 80 27 95 29 4 . 3 153 40 1 22 25 100 1 28 . 6 47 20 15 82 27 5 174 45 89 42 Melee 35 | . . . 6 . . . 4 . . . . . 2 . 1 . 8 8 . . . . 3 . . 2 1 . . . . . Projectile 303 | . . . . . . . . 28 8 4 . 3 35 . . 12 10 16 1 1 . 6 23 11 15 . 2 5 25 12 62 24 AOE 935 | . . 80 6 22 . 80 23 67 21 . . . 116 40 . 10 7 76 . 27 . . 21 9 . 80 24 . 149 33 26 18 Terrain Rammed 6 | . . . . . . . . . . . . . . . . . . . . . . . . . . . . . . . . 6 Walls Destroyed . | . . . . . . . . . . . . . . . . . . . . . . . . . . . . . . . . . Machines Disabled . | . . . . . . . . . . . . . . . . . . . . . . . . . . . . . . . . . Actions | -11 -10 -10 -9 -9 -9 -8 -8 -7 -7 -7 -7 -6 -6 -6 -6 -6 -6 -5 -5 -5 -5 -4 -4 -4 -4 -4 -3 -3 -3 -2 -1 -1 --------- Run | Scr Mat Min Mat Min Exi Min Mat Fac Low Low Dat Pro Fac Ext Cet Arc Hub Fac Upp Upp Zhi Pro Fac Upp Upp War Pro Res Tes Res Acc Com Total 22720 | 54 896 613 841 720 418 651 1437 1532 522 575 112 360 846 1052 206 3316 344 750 328 472 296 401 668 576 625 575 247 197 904 783 936 467 Wait 3867 | . 50 12 42 12 . 10 157 207 10 . . 21 89 78 43 2743 . 43 . . . . 32 16 56 38 . 34 116 9 47 2 Move 16252 | 44 770 575 657 694 418 589 1026 1156 474 543 107 319 559 784 138 512 285 574 320 444 259 363 487 518 538 483 235 126 639 661 662 293 Hop . | . . . . . . . . . . . . . . . . . . . . . . . . . . . . . . . . . Pick Up 206 | 4 17 5 16 1 . 3 20 19 1 3 . 2 12 11 6 9 1 14 2 1 4 2 11 1 3 5 . 3 7 11 10 2 Fast Attach 155 | 5 3 . . 1 . 2 12 6 2 2 1 1 14 8 2 2 1 10 1 . 10 1 8 1 2 4 . 2 16 23 8 7 Attach 135 | 1 . 1 4 . . . 7 9 2 . . . 16 6 . . 4 4 . . 1 1 5 1 . 1 . 3 10 6 24 29 Detach 89 | . . . . . . . 4 2 1 . . . 10 1 . . 1 4 . . . . 2 1 1 2 . 1 9 6 22 22 Swap 406 | . 4 5 22 5 . 12 39 30 14 17 1 6 27 36 2 10 10 21 3 11 2 15 35 12 6 2 5 7 17 7 15 8 Drop 305 | . 7 6 23 2 . 6 43 17 4 3 1 3 9 25 10 11 2 7 2 2 12 1 19 3 3 12 . 3 20 30 13 6 Fire 1060 | . 41 9 50 5 . 23 117 80 14 7 . 8 97 47 4 28 20 36 . 11 . 18 60 17 16 9 6 18 70 30 130 89 Melee 176 | . . . 27 . . 4 10 5 . . 2 . 2 48 1 1 16 36 . 3 8 . 5 . . 7 1 . . . . . Ram 8 | . . . . . . . . 1 . . . . . . . . . . . . . . . . . . . . . . . 7 Kick . | . . . . . . . . . . . . . . . . . . . . . . . . . . . . . . . . . Crush 32 | . 4 . . . . . 2 . . . . . 11 . . . 3 1 . . . . 4 . . . . . . . 5 2 Escape Stasis 8 | . . . . . . . . . . . . . . 8 . . . . . . . . . . . . . . . . . . Rewire 21 | . . . . . . 2 . . . . . . . . . . 1 . . . . . . 6 . 12 . . . . . . Trap . | . . . . . . . . . . . . . . . . . . . . . . . . . . . . . . . . . Miscellaneous . | . . . . . . . . . . . . . . . . . . . . . . . . . . . . . . . . . Route ------- -11/Scrapyard -10/Materials (discovered 4 exits: *Mat x3 / *Min) -10/Mines (discovered 2 exits: *Mat x2) -9/Materials (discovered 4 exits: *Mat / *Min / [*Sto x2]) -9/Mines (discovered 3 exits: *Mat x2 / *Exi) -9/Exiles -8/Mines (discovered 2 exits: *Mat x2) -8/Materials (discovered 3 exits: *Fac x3) -7/Factory (discovered 3 exits: *Fac / *Low x2) -7/Lower Caves -7/Lower Caves (discovered 2 exits: *Fac / *Dat) -7/Data Miner -6/Proximity Caves -6/Factory (discovered 4 exits: Low x2 / *Ext x2) -6/Extension (discovered 2 exits: *Fac / *Cet) -6/Cetus -6/Archives (discovered 3 exits: *Fac / *Hub x2) -6/Hub_04(d) -5/Factory (discovered 3 exits: *Fac / *Upp x2) -5/Upper Caves -5/Upper Caves -5/Zhirov -4/Proximity Caves -4/Factory (discovered 3 exits: Res / *Upp x2) -4/Upper Caves -4/Upper Caves (discovered 2 exits: *Res / *War) -4/Warlord -3/Proximity Caves -3/Research -3/Testing -2/Research -1/Access -1/Command History --------- Turn | Location | Event 2 | -11/Scrapyard | Discovered new exit (range 16) 81 | -11/Scrapyard | Entered Materials 307 | -10/Materials | Build established: Mutant 359 | -10/Materials | Discovered new exit (range 5) 837 | -10/Materials | Discovered new exit (range 4) 1201 | -10/Materials | Discovered new exit (range 5) 1412 | -10/Materials | Central database locked down 1492 | -10/Materials | Discovered new exit (range 12) 1512 | -10/Materials | Entered Mines 1513 | -10/Mines | Assembled infested the area 1665 | -10/Mines | Assisted by bots powering up and referring to "LRC-V3" 2004 | -10/Mines | Discovered new exit (range 7) 2026 | -10/Mines | Learned Materials trap positions 2065 | -10/Mines | Found a damaged Exp. Sensor Array with a note attached 2068 | -10/Mines | Found Prototype Device 2312 | -10/Mines | Discovered new exit (range 7) 2313 | -10/Mines | Learned location of Storage (-9) 2405 | -10/Mines | Entered Materials 2405 | -9/Materials | Accompanied by 1 ally 2405 | -9/Materials | Evolved 2 slots: Propulsion x1, Utility x1 2406 | -9/Materials | Loaded intel: 19 trap records 2704 | -9/Materials | Identified Exp. Sensor Array 2832 | -9/Materials | Discovered new exit (range 8) 2974 | -9/Materials | Discovered new exit (range 16) 3249 | -9/Materials | Discovered new exit (range 15) 3400 | -9/Materials | Discovered new exit (range 10) 3537 | -9/Materials | Entered Mines 3602 | -9/Mines | Met a Derelict bent on vengeance 3617 | -9/Mines | Met a Derelict shopkeep closing up shop 3667 | -9/Mines | Discovered new exit (range 6) 3979 | -9/Mines | Discovered new exit (range 9) 4006 | -9/Mines | Learned 2 Materials zone layouts 4500 | -9/Mines | Deemed a non-threat by the Exiles lab entrance 4500 | -9/Mines | Discovered new exit (range 5) 4506 | -9/Mines | Entered Exiles 4506 | -9/Exiles | Found Exiles lab abandoned 5060 | -9/Exiles | Discovered new exit (range 10) 5071 | -9/Exiles | Entered Mines 5522 | -8/Mines | Discovered new exit (range 8) 5531 | -8/Mines | Core integrity fell below 50% 5712 | -8/Mines | Discovered new exit (range 5) 5971 | -8/Mines | Entered Materials 5971 | -8/Materials | Evolved 2 slots: Utility x1, Weapon x1 6356 | -8/Materials | Destroyed 10 combat bots 6739 | -8/Materials | Build established: Scavenger-Tank 6958 | -8/Materials | Discovered new exit (range 6) 7171 | -8/Materials | First assault squad dispatched 7290 | -8/Materials | Core integrity fell below 50% 7618 | -8/Materials | Build established: Tank 7665 | -8/Materials | Discovered new exit (range 4) 7702 | -8/Materials | Garrison activated, responded to threat 7878 | -8/Materials | Discovered new exit (range 12) 8018 | -8/Materials | Entered Factory 8018 | -7/Factory | Evolved 2 slots: Power x1, Utility x1 8059 | -7/Factory | Identified exit to Lower Caves 8205 | -7/Factory | Discovered new exit (range 15) 8378 | -7/Factory | Repaired Broken Exp. Sensor Array? 8791 | -7/Factory | Found Powered Armor 8794 | -7/Factory | Found Powered Armor 10301 | -7/Factory | Repaired Hvy. Assault Cannon 10418 | -7/Factory | First assault squad dispatched 10451 | -7/Factory | Entered Lower Caves 10808 | -7/Lower Caves | Found Alien Artifact 10808 | -7/Lower Caves | Identified Core Expander 10808 | -7/Lower Caves | Installed Core Expander, added new Utility slot 11047 | -7/Lower Caves | Found Prototype Device 11100 | -7/Lower Caves | Encountered a Warlord checkpoint 11216 | -7/Lower Caves | Identified exit to Lower Caves 11276 | -7/Lower Caves | Build established: Scavenger-Skirmisher 11457 | -7/Lower Caves | Entered another Lower Caves area 11938 | -7/Lower Caves | Discovered new exit (range 11) 12102 | -7/Lower Caves | Learned location of Zion (-6) 12125 | -7/Lower Caves | Encountered a Warlord checkpoint 12406 | -7/Lower Caves | Discovered new exit (range 15) 12570 | -7/Lower Caves | Identified exit to Data Miner 12572 | -7/Lower Caves | Entered Data Miner 12572 | -7/Data Miner | Discovered new exit (range 6) 12580 | -7/Data Miner | Identified exit to Proximity Caves 12608 | -7/Data Miner | Met Data Miner 12668 | -7/Data Miner | Learned location of Section 7 (-2) 12668 | -7/Data Miner | Acquired the access code to Warlord's prototype stash 12694 | -7/Data Miner | Received God Mode back door access code from Data Miner 12771 | -7/Data Miner | Entered Proximity Caves 12819 | -6/Proximity Caves | Identified exit to Factory 12918 | -6/Proximity Caves | Escorted by Enhanced Grunt 13447 | -6/Proximity Caves | Entered Factory 13447 | -6/Factory | Evolved 2 slots: Propulsion x1, Utility x1 13448 | -6/Factory | Identified exit to Lower Caves 13883 | -6/Factory | Identified exit to Extension 14554 | -6/Factory | Spotted B-75 Beast 14566 | -6/Factory | Garrison activated, responded to threat 14622 | -6/Factory | Incoming investigation squad redirected 14677 | -6/Factory | Destroyed B-75 Beast 14681 | -6/Factory | Cargo convoy interrupted 14710 | -6/Factory | Destroyed 9 combat bots 14748 | -6/Factory | Lost 7 parts (2p3n1u1w) 14753 | -6/Factory | Found Prototype Device 14753 | -6/Factory | Identified Exp. Shield Generator 14773 | -6/Factory | Found Exp. Shield Generator 14776 | -6/Factory | Found Exp. Shield Generator 14840 | -6/Factory | Lost 4 parts (1p2n1w) 14893 | -6/Factory | Entered Extension 15198 | -6/Extension | Destroyed 8 combat bots 15243 | -6/Extension | First assault squad dispatched 15267 | -6/Extension | Incoming assault squad redirected 15335 | -6/Extension | Rescued a captive Derelict 15749 | -6/Extension | Spotted B-75 Beast 15757 | -6/Extension | Allies destroyed B-75 Beast 15758 | -6/Extension | Spotted B-75 Beast 15784 | -6/Extension | Destroyed B-75 Beast 15925 | -6/Extension | Rescued A7 16040 | -6/Extension | Rescued a captive Derelict 16282 | -6/Extension | Rescued a captive Derelict 16315 | -6/Extension | Discovered new exit (range 10) 16316 | -6/Extension | Discovered new exit (range 6) 16343 | -6/Extension | Identified exit to Factory 16354 | -6/Extension | Identified exit to Cetus 16359 | -6/Extension | Entered Cetus 16359 | -6/Cetus | Accompanied by 13 allies (A7) 16364 | -6/Cetus | Acquired a Cetus Manufacturing Module code from A7 16385 | -6/Cetus | Spotted Cetus Guard 16385 | -6/Cetus | Spotted Cetus Guard 16387 | -6/Cetus | Spotted Cetus Guard 16388 | -6/Cetus | Spotted Cetus Guard 16400 | -6/Cetus | Allies destroyed Cetus Guard 16403 | -6/Cetus | Allies destroyed Cetus Guard 16404 | -6/Cetus | Allies destroyed Cetus Guard 16404 | -6/Cetus | Allies destroyed Cetus Guard 16475 | -6/Cetus | Build established: Commander-Mutant 16480 | -6/Cetus | Started Cetus Manufacturing Module 16502 | -6/Cetus | Escorted A7 to Cetus Mainframe 16505 | -6/Cetus | Manufactured an Enhanced Grunt 16530 | -6/Cetus | Manufactured an Enhanced Grunt 16549 | -6/Cetus | Cetus Manufacturing Module disabled 16591 | -6/Cetus | Found a strange terminal 16617 | -6/Cetus | Discovered new exit (range 16) 16639 | -6/Cetus | Identified exit to Archives 16651 | -6/Cetus | Entered Archives 16651 | -6/Archives | Accompanied by 12 allies (A7) 16656 | -6/Archives | Received a hacking code to weaken MAIN.C 16721 | -6/Archives | Discovered exit to Factory (range 13) 16769 | -6/Archives | Discovered new exit (range 15) 16840 | -6/Archives | Discovered new exit (range 13) 16993 | -6/Archives | Build established: Commander-Gunner 17408 | -6/Archives | Identified exit to Hub_04(d) 17855 | -6/Archives | Build established: Scavenger-Gunner 19290 | -6/Archives | Build established: Scavenger-Skirmisher 20322 | -6/Archives | Entered Hub_04(d) 20322 | -6/Hub_04(d) | Accompanied by 3 allies 20490 | -6/Hub_04(d) | Discovered exit to Factory (range 9) 20616 | -6/Hub_04(d) | Build established: Scavenger-Assassin 20763 | -6/Hub_04(d) | Spotted B-75 Beast 20784 | -6/Hub_04(d) | Network Hub disabled 20789 | -6/Hub_04(d) | Network Hub disabled 20817 | -6/Hub_04(d) | Spotted Lightning 20817 | -6/Hub_04(d) | Spotted Lightning 20817 | -6/Hub_04(d) | Spotted Lightning 20843 | -6/Hub_04(d) | Spotted Lightning 20843 | -6/Hub_04(d) | Spotted Lightning 20843 | -6/Hub_04(d) | Spotted Lightning 20849 | -6/Hub_04(d) | Core integrity fell below 50% 20851 | -6/Hub_04(d) | System corruption reached 10% 20878 | -6/Hub_04(d) | Core integrity fell below 20% 20888 | -6/Hub_04(d) | Lost 7 parts (1p2n1u3w) 20902 | -6/Hub_04(d) | Entered Factory 20902 | -5/Factory | Evolved 2 slots: Propulsion x2 20967 | -5/Factory | Identified exit to Upper Caves 21128 | -5/Factory | Spotted B-75 Beast 21362 | -5/Factory | Incoming investigation squad redirected 21499 | -5/Factory | Discovered new exit (range 13) 21558 | -5/Factory | Incoming investigation squad redirected 21593 | -5/Factory | Fabricated Huge Storage Unit (x1) 21634 | -5/Factory | Identified exit to Factory 21684 | -5/Factory | Incoming investigation squad redirected 21827 | -5/Factory | Build established: Scavenger-Mutant 22085 | -5/Factory | Repaired Broken Centrium Heavy Treads 22133 | -5/Factory | Garrison activated, responded to threat 22241 | -5/Factory | Entered Upper Caves 22335 | -5/Upper Caves | Encountered a Warlord checkpoint 22337 | -5/Upper Caves | Learned 4 Factory zone layouts 22462 | -5/Upper Caves | Identified exit to Upper Caves 22515 | -5/Upper Caves | Build established: Scavenger-Assassin 22769 | -5/Upper Caves | Entered another Upper Caves area 23324 | -5/Upper Caves | Attracted the attention of an 0b10 checkpoint 23455 | -5/Upper Caves | Discovered new exit (range 15) 23474 | -5/Upper Caves | Identified exit to Zhirov 23502 | -5/Upper Caves | Acquired the password to a Derelict Tinkerer's latest research 23513 | -5/Upper Caves | Found Prototype Special Weapon 23542 | -5/Upper Caves | Entered Zhirov 23542 | -5/Zhirov | Discovered new exit (range 3) 23546 | -5/Zhirov | Identified exit to Proximity Caves 23573 | -5/Zhirov | Met Zhirov 23610 | -5/Zhirov | Learned location of Testing (-3) 23610 | -5/Zhirov | Learned location of Command (-1) 23620 | -5/Zhirov | Zhirov requested help retrieving the SGEMP Prototype 23646 | -5/Zhirov | Found Alien Artifact 23646 | -5/Zhirov | Identified Integrated Dissipator 23646 | -5/Zhirov | Installed Integrated Dissipator, increased core heat dissipation (+20) 23669 | -5/Zhirov | Found Alien Artifact 23888 | -5/Zhirov | Build established: Scavenger-Mutant 24011 | -5/Zhirov | Entered Proximity Caves 24079 | -4/Proximity Caves | System corruption reached 10% 24292 | -4/Proximity Caves | Build established: Scavenger-Assassin 24535 | -4/Proximity Caves | Discovered exit to Factory (range 5) 24663 | -4/Proximity Caves | Entered Factory 24663 | -4/Factory | Evolved 2 slots: Utility x2 24664 | -4/Factory | Identified exit to Research 24739 | -4/Factory | Identified exit to Upper Caves 24848 | -4/Factory | Identified Molecular Deconstructor 25434 | -4/Factory | Garrison activated, responded to threat 25540 | -4/Factory | Build established: Scavenger-Gunner 25763 | -4/Factory | Entered Upper Caves 26173 | -4/Upper Caves | Attracted the attention of an 0b10 outpost 26222 | -4/Upper Caves | Destroyed 7 combat bots 26466 | -4/Upper Caves | A Commander dispatched an escort 26482 | -4/Upper Caves | Learned Armory stockpile data 26627 | -4/Upper Caves | Discovered new exit (range 5) 26632 | -4/Upper Caves | Identified exit to Upper Caves 26711 | -4/Upper Caves | Entered another Upper Caves area 26711 | -4/Upper Caves | Accompanied by 2 allies 26712 | -4/Upper Caves | Commander's escort returned to base 26712 | -4/Upper Caves | Commander's escort returned to base 26751 | -4/Upper Caves | Build established: Mutant 26794 | -4/Upper Caves | Discovered exit to Research (range 5) 27003 | -4/Upper Caves | Learned location of Armory (-3) 27636 | -4/Upper Caves | Discovered new exit (range 16) 27669 | -4/Upper Caves | Found Alien Artifact 27712 | -4/Upper Caves | Identified exit to Warlord 27714 | -4/Upper Caves | Entered Warlord 27767 | -4/Warlord | System corruption cleaned by Quarantine Array 27923 | -4/Warlord | Received a Watcher feed algorithm from an ecstatic Tinkerer 27973 | -4/Warlord | Found Prototype Special Weapon 27973 | -4/Warlord | Identified RU-N14's Throwing Claymores v3 27977 | -4/Warlord | Found RU-N14's Throwing Claymores v3 28072 | -4/Warlord | Build established: Assassin 28135 | -4/Warlord | Met Warlord 28156 | -4/Warlord | Opened Warlord's prototype stash 28160 | -4/Warlord | Warlord's base attacked by MAIN.C 28166 | -4/Warlord | Found System Mapper 28174 | -4/Warlord | Found Prototype Device 28174 | -4/Warlord | Identified Exp. Cloaking Device 28348 | -4/Warlord | Met EX-DEC 28351 | -4/Warlord | Found Prototype Energy Cannon 28358 | -4/Warlord | Found Prototype Energy Cannon 28358 | -4/Warlord | Identified Vortex Cannon 28362 | -4/Warlord | Found Vortex Cannon 28458 | -4/Warlord | Build established: Mutant 28510 | -4/Warlord | Warlord forces counterattacked 28517 | -4/Warlord | Spotted Striker 28522 | -4/Warlord | Destroyed Striker 28560 | -4/Warlord | Spotted B-86 Titan 28560 | -4/Warlord | Spotted Striker 28560 | -4/Warlord | Spotted B-90 Cyclops 28562 | -4/Warlord | Destroyed Striker 28564 | -4/Warlord | Destroyed B-86 Titan 28594 | -4/Warlord | Discovered new exit (range 15) 28613 | -4/Warlord | Identified exit to Proximity Caves 28615 | -4/Warlord | Entered Proximity Caves 28829 | -3/Proximity Caves | Spotted B-86 Titan 29031 | -3/Proximity Caves | Discovered exit to Research (range 12) 29053 | -3/Proximity Caves | Entered Research 29053 | -3/Research | Evolved 2 slots: Power x1, Weapon x1 29104 | -3/Research | Discovered new exit (range 22) 29252 | -3/Research | Identified exit to Testing 29388 | -3/Research | Entered Testing 29443 | -3/Testing | Found Prototype Energy Gun 29443 | -3/Testing | Identified Warp Gun 29554 | -3/Testing | Identified Transdimensional Reconstructor 29554 | -3/Testing | Identified BFG-9k Vortex Edition 29781 | -3/Testing | Found Portable AFG 29976 | -3/Testing | Scanned by Researcher 29999 | -3/Testing | Found Prototype Protection 29999 | -3/Testing | Identified SHELL Armor 30055 | -3/Testing | Garrison activated, responded to threat 30119 | -3/Testing | Destroyed 7 combat bots 30666 | -3/Testing | Spotted PH-XOD7HPBGU4 30671 | -3/Testing | System corruption reached 10% 30914 | -3/Testing | Found Prototype Processor 30914 | -3/Testing | Identified Spectral Analyzer 30927 | -3/Testing | Found Quantum Capacitor 30964 | -3/Testing | Discovered new exit (range 5) 30998 | -3/Testing | Identified exit to Research 31048 | -3/Testing | Entered Research 31048 | -2/Research | Warlord forces began assault on 0b10 31048 | -2/Research | Evolved 2 slots: Utility x2 31079 | -2/Research | Lost 3 parts (1p1n1w) 31158 | -2/Research | Research machine network offline 31482 | -2/Research | Borebot progress halted 31529 | -2/Research | Spotted Executioner 31567 | -2/Research | Build established: Generator-Mutant 31748 | -2/Research | Spotted Striker 31751 | -2/Research | Spotted Striker 31783 | -2/Research | Borebot progress halted 31786 | -2/Research | Spotted Striker 31804 | -2/Research | Destroyed Striker 31897 | -2/Research | Found Prototype Hackware 31912 | -2/Research | Borebot progress halted 31945 | -2/Research | Found Prototype Launcher 31945 | -2/Research | Identified Tactical Quantum Warhead 32047 | -2/Research | Met up with Warlord 32049 | -2/Research | Warlord invited to help at Command 32073 | -2/Research | Found Com. Tesla Bomb Launcher 32093 | -2/Research | Spotted Executioner 32138 | -2/Research | Found Prototype Processor 32138 | -2/Research | Identified Exp. Core Analyzer 32152 | -2/Research | Found Exp. Core Analyzer 32168 | -2/Research | Found Prototype Device 32168 | -2/Research | Identified Adv. Kinecellerator 32183 | -2/Research | Found Exp. Core Analyzer 32265 | -2/Research | Discovered new exit (range 7) 32277 | -2/Research | Entered Access 32277 | -1/Access | Evolved 2 slots: Weapon x2 32367 | -1/Access | Identified Exp. Hacking Suite 32876 | -1/Access | Found Com. Tesla Bomb Launcher 33035 | -1/Access | Garrison activated, responded to threat 33159 | -1/Access | Destroyed 14 combat bots 33190 | -1/Access | System corruption reached 10% 33551 | -1/Access | Destroyed 7 combat bots 33799 | -1/Access | Discovered new exit (range 7) 33816 | -1/Access | Entered Command 33834 | -1/Command | Spotted B-99 Colossus 34066 | -1/Command | First assault squad dispatched 34159 | -1/Command | System corruption reached 30% 34226 | -1/Command | Lost 5 parts (1p2u2w) 34264 | -1/Command | Build established: Scavenger-Mutant 34300 | -1/Command | Spotted M Guard 34342 | -1/Command | Spotted Combat Programmer 34342 | -1/Command | Spotted Combat Programmer 34366 | -1/Command | Incoming assault squad redirected 34379 | -1/Command | Destroyed Combat Programmer 34389 | -1/Command | Spotted M Guard 34396 | -1/Command | Destroyed M Guard 34409 | -1/Command | Destroyed M Guard 34411 | -1/Command | Incoming assault squad redirected 34413 | -1/Command | Destroyed Combat Programmer 34413 | -1/Command | All MAIN.C guards destroyed 34446 | -1/Command | Destroyed 9 combat bots 34455 | -1/Command | Lost 8 parts (2p4n2u) 34461 | -1/Command | High security lockdown imminent 34541 | -1/Command | High security lockdown engaged 34546 | -1/Command | Met MAIN.C 34550 | -1/Command | Core integrity fell below 50% 34554 | -1/Command | 0b10 Conduit disabled 34559 | -1/Command | Core integrity fell below 20% 34561 | -1/Command | Destroyed by MAIN.C with High-powered Disruptor Cannon Last Messages --------------- 34549_ Biometal Heavy Treads destroyed. 34554_ Adv. Coolant Injector destroyed. 34554_ 0b10 Conduit disabled. 34556_ Slammed into 0b10 Conduit. 34556_ Machine Analyzer destroyed. 34556_ System corrupted by crushing effect (+1). 34556_ Destabilizing: Core damaged (-48). 34557_ Slammed into 0b10 Conduit. 34557_ Destabilizing: System interference. 34557_ Exp. Core Analyzer temporarily disabled. 34557_ Destabilizing: System corrupted (+2). 34558_ AKSB#L%1H/4IWW7O B5K|O OEUJXT WK 34558_ Slammed into 0b10 Conduit. 34558_ Destabilizing: System corrupted (+2). 34558_ Destabilizing: Core damaged (-64). 34559_ Slammed into 0b10 Conduit. 34559_ Exp. Core Analyzer broken. 34559_ Destabilizing: Short circuit. 34560_ Slammed into 0b10 Conduit. 34561_ Destabilizing: System corrupted (+1). Map ----- +----------------------------------------------------+ | ?????????????????????????????????????????????????? | | ?????????????????????????????????????????????????? | | ?????????????????????????????????????????????????? | | ?????????????????????????????????????????????????? | | ?????????????????????????????????????????????????? | | ?????????????????????????????????????????????????? | | ?????????????????????????????????????????????????? | | ?????????????????????????????????????????????????? | | ?????????????????????????????????????????????????? | | ?????????????????????????????????????????????????? | | ?????????????????????????????????????????????????? | | ?????????????????????????????????????????????????? | | ?????????????????????????????????????????????????? | | ?????????????????????????????????????????????????? | | ?????????????????????????????????????????????????? | | ?????????????????????????????????????????????????? | | ??????????????????????###############????????????? | | ?????????????????????" """" #????????????? | | ????????????????????? "" #????????????? | | ???????????????????? "" ############## | | ????????????????????"""""" mg] =%[ = | | ???????????????????? """ b /!g ! % | | ???????????????????"""""" g gm!!] / | | ???????????????????"""""" bb g############## | | ??????????????# " """""" b #????????????? | | ??????????????# " " @ l l #????????????? | | ??????????????# " "MMM "#????????????? | | ???????????????"""""""""MMM """""""#????????????? | | ?????????????????? MMM"""""""""#????????????? | | ???????????????? """""""""""#????????????? | | ??????????????? " " " " #????????????? | | ???????????????? " " " " #????????????? | | ??????????????? " " " """" " #????????????? | | ??????????????? """ " " """" #????????????? | | ??????????????? " " " ??? ???????????????? | | ??????????????? """""""""" ???????????????????? | | ??????????????? " ??? ? ""???????????????????? | | ??????????????????????? ?????????????????????????? | | ???????????????????????#?????????????????????????? | | ?????????????????????????????????????????????????? | | ?????????????????????????????????????????????????? | | ?????????????????????????????????????????????????? | | ?????????????????????????????????????????????????? | | ?????????????????????????????????????????????????? | | ?????????????????????????????????????????????????? | | ?????????????????????????????????????????????????? | | ?????????????????????????????????????????????????? | | ?????????????????????????????????????????????????? | | ?????????????????????????????????????????????????? | | ?????????????????????????????????????????????????? | +----------------------------------------------------+ Best States ------------- Heat Dissipation 103 Coolant Potential 100 Energy Generation 65 Energy Capacity 955 Matter Stores 300 Matter Capacity 300 Sight Range 23 Robot Scan Range 20 Terrain Scan Density 10 Jamming Range 16 Armor Coverage 1800 Propulsion Shielding 90 Weapon Shielding 66 Evasion (%) 50 Targeting Accuracy 8 Core Analysis 12 Recoil Reduction 6 Offensive Hacking 36 Item Schematics ----------------- Huge Storage Unit | -8/Mines | Hacked Transport Network Coupler | -8/Materials | Scanalyzed Exp. Sensor Array | -8/Materials | Scanalyzed Combat Drone Bay | -7/Data Miner | Free Lgt. Regenerative Plating | -7/Data Miner | Free Cld. Aerolev Unit | -7/Data Miner | Free Thermal Defense Suite | -7/Data Miner | Free Antimatter Cannon | -7/Data Miner | Free Linear Gravjet | -7/Data Miner | Free Imp. Coolant Injector | -7/Data Miner | Free Adv. Plasma Cannon | -7/Data Miner | Free Cmb. Airjet | -7/Data Miner | Free Mass Driver | -7/Data Miner | Free Phase Gun | -7/Data Miner | Free Assault Drone Bay | -5/Zhirov | Free Exp. Heat Sink | -5/Zhirov | Free Exp. Optical Array | -5/Zhirov | Free Imp. Arc Thrower | -5/Zhirov | Free Hvy. Armor Plating | -3/Testing | Scanalyzed Robot Schematics ------------------ L-41 Fighter | -7/Data Miner | Free O-24 Administrator | -7/Data Miner | Free M-14 Sweeper | -7/Data Miner | Free H-66 Slayer | -7/Data Miner | Free R-10 Processor | -7/Data Miner | Free Y-54 Guardian | -7/Data Miner | Free S-43 Plague | -3/Testing | Archive Fabricated ------------ Huge Storage Unit | x1 | -5/Factory Alien Tech Used ----------------- Core Expander Integrated Dissipator Achievements -------------- None Challenges ------------ None Game ------ Seed SmallNodeStreamer Manual? 0 Play Time 06:23:37 Cumulative 291.9 hours Start 2022.04.26 @ 23:09:31 End 2022.05.01 @ 06:09:11 Sessions 37 Manual Loads 0 Difficulty Rogue Special Mode None Game No. 127 Rogue 127 Adventurer 0 Explorer 0 Win Type - Total 7 Types 5/0/0/1/0/0/0/1/0 Lore% 87 Gallery% 89 Achievement% 68 Wizard Run 0 Options --------- ASCII 0 Keyboard 1 Movement Vi Keybinds 0 Fullscreen 2 Font 18/Cog Map View 76x50 Tactical HUD 1 Map Filters NONE Filters NONE Steam 0 RUN: f26f6016-c5cb-46c6-92ed-01d7f1657f8d